bitfinex-derivatives/quotes_SOLF0:USTF0_20240818
["timestamp","ask_amount","ask_price","bid_price","bid_amount"]
[1724024297975,2.522,143.54,143.48,3.484]
[1724024298181,25.932,143.54,143.48,3.484]
[1724024298688,3.4834,143.52,143.49,3.4839]
[1724024299085,0.04966407,143.52,143.49,3.53161427]
[1724024299383,0.04966407,143.52,143.49,0.04771427]
[1724024299792,0.04966407,143.52,143.51,3.4835]
[1724024300284,7.6257,143.58,143.49,0.04771427]
[1724024300690,6.0677,143.58,143.48,23.41]
[1724024300881,6.0677,143.58,143.49,1.3218]
[1724024301082,6.0677,143.58,143.54,3.4827]
[1724024301384,2.5857,143.58,143.52,5.04]
[1724024301697,2.5857,143.58,143.55,0.04903682]
[1724024301883,3.4822,143.57,143.55,0.04903682]
[1724024302190,3.4822,143.57,143.53,3.4828]
[1724024302387,3.4822,143.57,143.55,0.04753843]
[1724024304886,3.4822,143.57,143.5,5.04]
[1724024304887,23.41,143.57,143.5,5.04]
[1724024305086,23.41,143.57,143.47,6.3709]
[1724024305286,3.483,143.54,143.5,3.4836]
[1724024306085,0.04753843,143.53,143.51,0.04449182]
[1724024306691,0.04753843,143.53,143.51,3.52799182]
[1724024307185,0.04753843,143.53,143.52,3.4833]
[1724024311187,0.04753843,143.53,143.51,0.04449182]
[1724024314000,3.53063843,143.53,143.51,0.04449182]
[1724024315995,0.04753843,143.53,143.51,0.04449182]
[1724024316403,3.53063843,143.53,143.51,0.04449182]
[1724024316698,0.04753843,143.53,143.51,0.04449182]
[1724024316897,18.73,143.52,143.44,5.04]
[1724024317101,20.0639,143.52,143.44,5.04]
[1724024317297,20.0639,143.52,143.46,3.4847]
[1724024318002,0.05023127,143.5,143.48,0.05245754]
[1724024318406,3.4846,143.47,143.4,5.04]
[1724024318706,18.78023127,143.5,143.4,23.77]
[1724024318707,18.73,143.5,143.4,23.77]
[1724024318904,3.4846,143.47,143.43,3.4855]
[1724024319105,3.4846,143.47,143.4,23.77]
[1724024319505,0.05281239,143.45,143.43,3.4853]
[1724024319905,0.05281239,143.45,143.42,0.05354204]
[1724024321197,3.4854,143.44,143.42,0.05354204]
[1724024321398,0.05281239,143.45,143.42,0.05354204]
[1724024321804,18.73,143.44,143.38,3.4866]
[1724024322206,20.02,143.44,143.38,3.4866]
[1724024323002,0.05254797,143.42,143.4,0.04409186]
[1724024323804,0.05254797,143.42,143.41,3.486]
[1724024325911,3.4846,143.47,143.44,3.4852]
[1724024326112,3.4844,143.48,143.41,23.41]
[1724024326411,1.3372,143.5,143.41,23.41]
[1724024327008,0.04796522,143.47,143.44,0.04902885]
[1724024328012,2.5288,143.55,143.45,28.33]
[1724024328209,2.5288,143.55,143.46,1.3516]
[1724024328610,3.4834,143.52,143.48,3.4842]
[1724024328913,2.5288,143.55,143.46,1.3516]
[1724024329112,0.04633799,143.51,143.5,3.4837]
[1724024329311,3.4829,143.54,143.5,3.4837]
[1724024329514,0.04515252,143.52,143.5,3.4837]
[1724024329718,0.04515252,143.52,143.49,0.05270652]
[1724024330416,3.52865252,143.52,143.49,0.05270652]
[1724024332216,3.4838,143.5,143.49,0.05270652]
[1724024332411,0.04515252,143.52,143.49,0.05270652]
[1724024332612,3.4836,143.51,143.49,0.05270652]
[1724024333117,3.4838,143.5,143.49,0.05270652]
[1724024335318,3.4836,143.51,143.49,0.05270652]
[1724024336113,0.04515252,143.52,143.49,0.05270652]
[1724024336316,3.4838,143.5,143.49,0.05270652]
[1724024336517,0.04515252,143.52,143.49,0.05270652]
[1724024337521,0.04515252,143.52,143.49,3.53660652]
[1724024337522,3.52865252,143.52,143.49,3.53660652]
[1724024338016,3.4835,143.51,143.49,3.53660652]
[1724024338220,3.4835,143.51,143.49,0.05270652]
[1724024339216,23.45515252,143.52,143.49,0.05270652]
[1724024339815,3.4837,143.51,143.49,0.05270652]
[1724024340018,23.45515252,143.52,143.49,0.05270652]
[1724024340420,3.4838,143.5,143.49,0.05270652]
[1724024341522,3.4836,143.51,143.49,0.05270652]
[1724024344621,0.04515252,143.52,143.49,0.05270652]
[1724024344827,0.04515252,143.52,143.49,3.49428689]
[1724024345125,3.4822,143.57,143.54,3.4828]
[1724024345425,2.6557,143.59,143.54,3.4828]
[1724024345721,3.4818,143.58,143.51,23.41]
[1724024346121,0.05236412,143.56,143.53,0.04655593]
[1724024346323,0.05236412,143.56,143.55,3.4825]
[1724024348319,0.05236412,143.56,143.54,3.4828]
[1724024351629,0.05236412,143.56,143.53,0.04655593]
[1724024351837,0.05236412,143.56,143.53,3.52945593]
[1724024352131,3.53466412,143.56,143.53,3.52945593]
[1724024352327,0.05236412,143.56,143.53,3.52945593]
[1724024353936,3.53466412,143.56,143.53,3.52945593]
[1724024354236,0.05236412,143.56,143.54,3.4828]
[1724024355630,0.05236412,143.56,143.53,3.52945593]
[1724024356740,0.05236412,143.56,143.53,0.04655593]
[1724024357138,3.4828,143.54,143.53,0.04655593]
[1724024363537,3.4833,143.52,143.49,4.7183]
[1724024364847,3.53619257,143.52,143.49,4.76851071]
[1724024365545,3.53619257,143.52,143.49,3.53421071]
[1724024367349,23.57,143.51,143.37,39.72430658]
[1724024367647,18.73,143.49,143.39,20.0967]
[1724024367841,3.4854,143.44,143.4,3.486]
[1724024368346,0.04978937,143.43,143.41,3.53584865]
[1724024369142,3.53538937,143.43,143.41,0.04994865]
[1724024369343,0.04978937,143.43,143.41,0.04994865]
[1724024370348,3.4857,143.42,143.41,0.04994865]
[1724024375955,3.4862,143.41,143.38,3.4866]
[1724024376454,4.88978937,143.43,143.38,3.4866]
[1724024376752,3.4862,143.4,143.38,3.4866]
[1724024376954,3.4862,143.4,143.39,0.04434552]
[1724024377855,18.73,143.41,143.32,18.73]
[1724024378049,18.73,143.41,143.35,3.4872]
[1724024378243,4.84,143.4,143.35,3.4872]
[1724024378448,3.4866,143.39,143.35,3.4872]
[1724024379060,0.05054127,143.38,143.36,3.53338852]
[1724024379755,0.05054127,143.38,143.36,0.04628852]
[1724024380455,3.53724127,143.38,143.36,0.04628852]
[1724024381049,3.4869,143.37,143.36,0.04628852]
[1724024381850,0.05054127,143.38,143.36,0.04628852]
[1724024382256,3.4869,143.37,143.36,0.04628852]
[1724024391058,3.4873,143.36,143.33,3.4879]
[1724024391561,3.4877,143.34,143.31,4.7223]
[1724024391948,3.4875,143.35,143.31,4.7223]
[1724024392154,0.05317185,143.34,143.32,3.4881]
[1724024392455,0.05317185,143.34,143.31,0.05278207]
[1724024393057,0.05317185,143.34,143.33,3.4879]
[1724024397267,0.05317185,143.34,143.32,3.4881]
[1724024397649,3.4879,143.33,143.31,0.05278207]
[1724024397856,0.05317185,143.34,143.31,0.05278207]
[1724024398756,3.54097185,143.34,143.31,3.54108207]
[1724024399764,0.05317185,143.34,143.31,3.54108207]
[1724024400656,0.05317185,143.34,143.31,0.05278207]
[1724024401962,0.05317185,143.34,143.31,3.54098207]
[1724024402364,0.05317185,143.34,143.31,0.05278207]
[1724024402564,0.05317185,143.34,143.32,3.488]
[1724024403359,0.05317185,143.34,143.31,0.05278207]
[1724024403563,7.5,143.33,143.31,0.00264642]
[1724024403864,12.24,143.33,143.31,0.00264642]
[1724024404059,15.728,143.33,143.31,0.00264642]
[1724024404253,8.228,143.33,143.31,0.00264642]
[1724024404964,4.74,143.33,143.31,0.00264642]
[1724024406264,8.228,143.33,143.31,0.00264642]
[1724024407960,10.9881,143.32,143.31,0.00264642]
[1724024411765,4.7731,143.33,143.31,0.00264642]
[1724024411962,0.05317185,143.34,143.31,0.00264642]
[1724024412863,0.05317185,143.34,143.31,3.49094642]
[1724024413270,0.05317185,143.34,143.31,0.00264642]
[1724024413467,0.05317185,143.34,143.31,7.50264642]
[1724024414570,0.05317185,143.34,143.31,0.00264642]
[1724024414970,0.05317185,143.34,143.31,3.49084642]
[1724024415164,3.54087185,143.34,143.31,0.00264642]
[1724024415360,0.05317185,143.34,143.31,0.00264642]
[1724024415863,3.54097185,143.34,143.31,0.00264642]
[1724024416862,0.05317185,143.34,143.31,3.49104642]
[1724024418271,0.05317185,143.34,143.31,0.00264642]
[1724024419172,3.488,143.33,143.31,0.00264642]
[1724024419370,0.05317185,143.34,143.31,0.00264642]
[1724024419774,3.54107185,143.34,143.31,0.00264642]
[1724024421178,0.05317185,143.34,143.31,0.00264642]
[1724024422071,3.4881,143.33,143.31,0.00264642]
[1724024423178,3.54087185,143.34,143.31,0.00264642]
[1724024423582,0.05317185,143.34,143.31,0.00264642]
[1724024425183,0.05317185,143.34,143.33,3.4879]
[1724024425371,0.05317185,143.34,143.32,22.33176039]
[1724024425773,0.05317185,143.34,143.33,3.4879]
[1724024428176,0.05317185,143.34,143.32,3.488]
[1724024428575,3.4879,143.33,143.31,0.00264642]
[1724024428777,0.05317185,143.34,143.31,0.00264642]
[1724024429375,0.05317185,143.34,143.32,18.76]
[1724024429677,2.6153,143.41,143.33,1.3389]
[1724024429880,1.2713,143.41,143.34,18.76]
[1724024430186,3.4864,143.4,143.36,3.487]
[1724024430781,0.04394261,143.39,143.37,0.04974601]
[1724024430979,0.04394261,143.39,143.37,3.53654601]
[1724024431783,0.04394261,143.39,143.37,0.04974601]
[1724024434984,0.04394261,143.39,143.37,3.53654601]
[1724024435189,6.9657,143.54,143.38,18.76]
[1724024435485,4.37782386,143.45,143.38,18.76]
[1724024435685,3.4852,143.45,143.39,18.76]
[1724024435885,3.4852,143.45,143.4,4.64]
[1724024436183,3.4852,143.45,143.41,3.4858]
[1724024436386,0.0493566,143.44,143.41,3.53551273]
[1724024437186,3.5346566,143.44,143.41,0.04971273]
[1724024437387,0.0493566,143.44,143.41,0.04971273]
[1724024437890,3.5346566,143.44,143.41,0.04971273]
[1724024438992,0.0493566,143.44,143.41,0.04971273]
[1724024439888,0.0493566,143.44,143.42,3.4856]
[1724024440388,0.0493566,143.44,143.41,22.36285347]
[1724024440596,4.64,143.52,143.43,18.76]
[1724024440789,3.484,143.5,143.43,23.4]
[1724024441487,1.3174,143.53,143.45,18.76]
[1724024441693,1.3174,143.53,143.45,18.8039794]
[1724024441694,0.04763048,143.48,143.45,18.8039794]
[1724024442694,0.04763048,143.48,143.46,3.4847]
[1724024443598,0.04763048,143.48,143.47,3.4845]
[1724024443799,1.3174,143.53,143.47,18.76]
[1724024444704,1.3174,143.53,143.46,6.0441]
[1724024444906,0.04485711,143.51,143.49,0.04973259]
[1724024445502,3.52845711,143.51,143.49,0.04973259]
[1724024445699,0.04485711,143.51,143.49,0.04973259]
[1724024448301,3.4838,143.5,143.49,0.04973259]
[1724024449501,3.52845711,143.51,143.49,0.04973259]
[1724024450498,0.04485711,143.51,143.49,0.04973259]
[1724024451100,3.52835711,143.51,143.49,0.04973259]
[1724024452405,0.04485711,143.51,143.49,0.04973259]
[1724024453809,3.52845711,143.51,143.49,0.04973259]
[1724024455012,3.4838,143.5,143.49,0.04973259]
[1724024455202,0.04485711,143.51,143.44,4.7]
[1724024455399,18.76,143.52,143.44,4.7]
[1724024455601,18.76,143.52,143.45,3.4848]
[1724024455803,18.76,143.5,143.41,23.46]
[1724024456002,18.76,143.48,143.39,18.76]
[1724024456307,18.76,143.48,143.42,0.04933809]
[1724024456308,0.04480408,143.45,143.42,0.04933809]
[1724024456905,3.4857,143.43,143.42,0.04933809]
[1724024457200,0.04480408,143.45,143.42,0.04933809]
[1724024457407,3.52990408,143.45,143.42,0.04933809]
[1724024458310,0.04480408,143.45,143.42,0.04933809]
[1724024459302,0.04480408,143.45,143.43,18.76]
[1724024459906,0.04480408,143.45,143.44,3.4852]
[1724024460103,0.04480408,143.45,143.42,4.74933809]
[1724024461013,3.52980408,143.45,143.42,0.04933809]
[1724024461214,0.04480408,143.45,143.42,0.04933809]
[1724024462709,1.34230408,143.45,143.42,0.04933809]
[1724024463116,3.4855,143.43,143.42,0.04933809]
[1724024463808,1.34230408,143.45,143.42,0.04933809]
[1724024464520,3.4852,143.44,143.42,0.04933809]
[1724024464711,1.34230408,143.45,143.42,0.04933809]
[1724024465219,3.4855,143.43,143.42,0.04933809]
[1724024466714,1.34230408,143.45,143.42,0.04933809]
[1724024467813,0.04480408,143.45,143.42,0.04933809]
[1724024468814,3.4855,143.43,143.42,0.04933809]
[1724024469515,20.0472,143.44,143.35,18.76]
[1724024469917,20.0472,143.44,143.34,5.9454]
[1724024469918,18.76,143.42,143.34,4.7]
[1724024470123,23.46,143.42,143.33,18.76]
[1724024470416,23.46,143.42,143.26,7.8929]
[1724024470417,0.05221774,143.39,143.36,0.0501141]
[1724024470622,1.3377,143.39,143.29,18.76]
[1724024470924,18.76,143.38,143.31,3.4882]
[1724024471120,20.0472,143.38,143.29,18.76]
[1724024471617,0.05122649,143.35,143.32,0.0482139]
[1724024472321,3.488,143.33,143.32,0.0482139]
[1724024474618,0.05122649,143.35,143.32,0.0482139]
[1724024475221,0.05122649,143.35,143.34,3.4877]
[1724024476832,0.05122649,143.35,143.33,3.4878]
[1724024477730,3.4863,143.4,143.36,3.487]
[1724024477927,7.2276,143.44,143.36,23.45]
[1724024478222,3.4866,143.39,143.35,3.4873]
[1724024478826,3.4866,143.39,143.34,29.4578]
[1724024478827,3.4866,143.39,143.36,3.4871]
[1724024479027,0.04583733,143.38,143.36,3.5328292]
[1724024480735,0.04583733,143.38,143.36,0.0457292]
[1724024481940,0.04583733,143.38,143.36,3.5327292]
[1724024482238,0.04583733,143.38,143.36,0.0457292]
[1724024482439,0.04583733,143.38,143.37,3.4869]
[1724024484438,0.04583733,143.38,143.36,3.5328292]
[1724024484834,0.04583733,143.38,143.36,0.0457292]
[1724024485029,0.04583733,143.38,143.37,3.4869]
[1724024489132,0.04583733,143.38,143.36,0.0457292]
[1724024489334,0.04583733,143.38,143.36,3.5327292]
[1724024489538,0.04583733,143.38,143.36,0.0457292]
[1724024490244,3.4869,143.37,143.36,0.0457292]
[1724024492842,3.53253733,143.38,143.36,0.0457292]
[1724024493744,3.4869,143.37,143.36,0.0457292]
[1724024495750,3.53263733,143.38,143.36,0.0457292]
[1724024496249,0.04583733,143.38,143.36,3.5328292]
[1724024496547,0.04583733,143.38,143.36,0.0457292]
[1724024496745,0.04583733,143.38,143.36,1.3892292]
[1724024498757,0.04583733,143.38,143.36,4.8763292]
[1724024499454,3.53253733,143.38,143.36,0.0457292]
[1724024501448,3.4869,143.37,143.36,0.0457292]
[1724024501651,0.04583733,143.38,143.36,0.0457292]
[1724024503357,3.4869,143.37,143.36,0.0457292]
[1724024504544,3.53263733,143.38,143.36,0.0457292]
[1724024505446,3.4869,143.37,143.36,0.0457292]
[1724024505645,0.04583733,143.38,143.36,0.0457292]
[1724024506355,0.04583733,143.38,143.36,18.7857292]
[1724024507550,0.04583733,143.38,143.37,3.4869]
[1724024507753,0.04583733,143.38,143.36,18.7857292]
[1724024508157,0.04583733,143.38,143.36,22.2727292]
[1724024510653,3.53273733,143.38,143.36,18.7857292]
[1724024510961,0.04583733,143.38,143.36,18.7857292]
[1724024512061,0.04583733,143.38,143.36,22.2728292]
[1724024515160,0.04583733,143.38,143.36,18.7857292]
[1724024515761,3.53263733,143.38,143.36,0.0457292]
[1724024516363,0.04583733,143.38,143.36,0.0457292]
[1724024516554,3.4869,143.37,143.36,0.0457292]
[1724024521261,3.4869,143.37,143.36,0.00081244]
[1724024521462,7.86929956,143.37,143.36,0.00081244]
[1724024521663,7.86923755,143.37,143.36,0.00081244]
[1724024522562,3.4878,143.34,143.31,3.4883]
[1724024522765,19.9767,143.38,143.31,3.4883]
[1724024522969,4.38264389,143.37,143.31,3.4883]
[1724024523263,3.4879,143.33,143.3,3.4884]
[1724024523463,3.4879,143.33,143.28,23.36]
[1724024523666,0.04466883,143.32,143.3,3.4886]
[1724024523865,0.04466883,143.32,143.29,0.04981661]
[1724024525457,0.04466883,143.32,143.3,3.4885]
[1724024525858,3.53286883,143.32,143.29,3.53851661]
[1724024527360,0.04466883,143.32,143.31,3.4884]
[1724024527569,18.74,143.41,143.31,3.45808049]
[1724024527764,11.37254468,143.4,143.32,18.74]
[1724024527964,3.4874,143.36,143.32,22.228]
[1724024528769,0.04620077,143.35,143.33,0.04678413]
[1724024530457,3.53360077,143.35,143.33,0.04678413]
[1724024531467,0.04620077,143.35,143.33,0.04678413]
[1724024533271,7.87190097,143.34,143.33,0.04678413]
[1724024534965,3.4886,143.3,143.27,1.2499]
[1724024535869,3.4886,143.3,143.27,4.7392]
[1724024536170,3.53867846,143.3,143.27,4.79241979]
[1724024537268,0.05007846,143.3,143.28,3.4891]
[1724024538259,0.05007846,143.3,143.29,3.4889]
[1724024540868,2.6758,143.37,143.28,18.74]
[1724024541064,4.38504957,143.36,143.31,18.74]
[1724024541269,2.6758,143.37,143.31,18.74]
[1724024541469,4.38507138,143.36,143.31,18.74]
[1724024541671,2.6758,143.37,143.31,18.74]
[1724024542062,0.05320988,143.35,143.33,0.04560002]
[1724024542663,3.54080988,143.35,143.33,0.04560002]
[1724024542870,0.05320988,143.35,143.33,0.04560002]
[1724024545076,3.54060988,143.35,143.33,0.04560002]
[1724024549775,3.4877,143.34,143.33,0.04560002]
[1724024555579,0.05320988,143.35,143.33,7.54560002]
[1724024555781,0.05320988,143.35,143.34,7.5]
[1724024556484,0.05320988,143.35,143.33,7.54560002]
[1724024556680,0.05320988,143.35,143.33,11.03330002]
[1724024561882,0.05320988,143.35,143.33,0.04560002]
[1724024562689,3.54070988,143.35,143.33,0.04560002]
[1724024565088,0.05320988,143.35,143.33,0.04560002]
[1724024565490,0.05320988,143.35,143.33,3.53350002]
[1724024565793,0.05320988,143.35,143.34,7.5]
[1724024566187,0.05320988,143.35,143.34,10.9877]
[1724024566387,4.56,143.4,143.34,10.9877]
[1724024566689,4.56,143.4,143.36,7.5]
[1724024566992,3.4867,143.38,143.36,7.5]
[1724024567385,0.04952706,143.38,143.36,7.54932923]
[1724024567586,3.4869,143.37,143.36,0.04932923]
[1724024568086,7.87410406,143.37,143.36,0.04932923]
[1724024570787,0.04952706,143.38,143.36,7.54932923]
[1724024571390,0.04952706,143.38,143.37,3.4869]
[1724024571587,0.04952706,143.38,143.36,7.54932923]
[1724024572891,0.04952706,143.38,143.36,11.03632923]
[1724024573194,0.04952706,143.38,143.36,7.54932923]
[1724024574389,0.04952706,143.38,143.36,11.03632923]
[1724024574791,0.04952706,143.38,143.36,3.53632923]
[1724024575092,0.04952706,143.38,143.36,7.54932923]
[1724024576496,0.04952706,143.38,143.37,7.5]
[1724024577993,0.04952706,143.38,143.37,10.9869]
[1724024580788,3.4856,143.43,143.37,7.5]
[1724024580988,3.4856,143.43,143.4,7.5]
[1724024581993,3.4858,143.42,143.4,0.050302]
[1724024582199,0.05007034,143.43,143.4,0.050302]
[1724024582497,4.38892347,143.42,143.4,0.050302]
[1724024582799,7.87492347,143.41,143.4,0.050302]
[1724024582998,4.38892347,143.41,143.35,7.5]
[1724024583193,7.55007034,143.43,143.35,7.5]
[1724024583194,4.38892347,143.4,143.35,7.5]
[1724024583398,4.38892347,143.39,143.35,7.5]
[1724024583600,3.4866,143.39,143.35,7.5]
[1724024583997,3.4866,143.39,143.36,0.04829124]
[1724024583998,4.43749904,143.38,143.36,0.04829124]
[1724024584192,0.04903021,143.38,143.36,0.04829124]
[1724024584399,3.4869,143.37,143.36,0.00071453]
[1724024585291,11.88778112,143.37,143.27,4.56]
[1724024585496,7.5,143.35,143.29,7.5]
[1724024585700,7.5,143.35,143.29,10.9887]
[1724024585901,4.56,143.36,143.3,7.5]
[1724024586102,4.3890787,143.35,143.3,10.9886]
[1724024586299,0.04805466,143.34,143.31,0.04502]
[1724024586799,3.488,143.33,143.31,0.04502]
[1724024587192,0.04805466,143.34,143.31,0.04502]
[1724024587602,4.38731461,143.33,143.31,0.04502]
[1724024587907,7.87541461,143.32,143.31,0.04502]
[1724024588296,3.4881,143.32,143.31,0.04502]
[1724024588500,7.87579886,143.32,143.31,0.04502]
[1724024588704,3.4887,143.3,143.26,3.4894]
[1724024589000,3.4887,143.3,143.25,18.76]
[1724024589203,3.4885,143.31,143.27,3.4892]
[1724024589901,0.05037216,143.3,143.28,0.04611428]
[1724024590499,3.53897216,143.3,143.28,0.04611428]
[1724024596705,0.05037216,143.3,143.28,3.53511428]
[1724024598508,0.05037216,143.3,143.29,3.4889]
[1724024598702,4.56,143.35,143.28,18.76]
[1724024599309,3.4878,143.34,143.3,3.4885]
[1724024599710,0.0535514,143.33,143.31,0.05090908]
[1724024601208,3.5414514,143.33,143.31,0.05090908]
[1724024604699,3.4881,143.32,143.31,0.05090908]
[1724024606300,3.4881,143.32,143.31,0.00053692]
[1724024606301,4.8021,143.32,143.31,0.00053692]
[1724024607805,3.4891,143.29,143.26,3.4895]
[1724024608407,7.51,143.27,143.11,229.0]
[1724024608708,7.51,143.27,143.21,7.51]
[1724024608902,0.04900915,143.23,143.21,0.04869833]
[1724024609099,0.04900915,143.23,143.21,7.55869833]
[1724024609297,0.04900915,143.23,143.21,11.04939833]
[1724024609503,0.04900915,143.23,143.21,0.04869833]
[1724024609899,3.53950915,143.23,143.21,0.04869833]
[1724024611312,3.4906,143.22,143.21,0.04869833]
[1724024616923,8.0506,143.22,143.21,0.04869833]
[1724024617116,3.4914,143.19,143.16,11.0019]
[1724024617318,3.4914,143.19,143.16,3.4919]
[1724024618220,3.53708502,143.19,143.16,3.53886108]
[1724024619225,0.04568502,143.19,143.16,7.55696108]
[1724024619715,4.60568502,143.19,143.16,7.55696108]
[1724024619915,8.09708502,143.19,143.16,11.04886108]
[1724024622728,4.60568502,143.19,143.17,3.4917]
[1724024622924,0.04568502,143.19,143.18,7.51]
[1724024623824,0.04568502,143.19,143.16,0.04696108]
[1724024624527,0.04568502,143.19,143.16,3.53896108]
[1724024625230,0.04568502,143.19,143.16,0.04696108]
[1724024625424,0.04568502,143.19,143.16,7.55696108]
[1724024625825,0.04568502,143.19,143.17,3.4916]
[1724024626027,0.04568502,143.19,143.16,7.55696108]
[1724024626222,0.04568502,143.19,143.18,3.4916]
[1724024627324,0.04568502,143.19,143.17,3.4917]
[1724024627520,0.04568502,143.19,143.16,7.55696108]
[1724024627925,0.04568502,143.19,143.18,11.0016]
[1724024628327,0.04568502,143.19,143.18,3.4916]
[1724024631323,0.04568502,143.19,143.17,3.4917]
[1724024632238,0.04568502,143.19,143.16,3.53886108]
[1724024632923,3.4918,143.17,143.16,0.04696108]
[1724024633128,0.04568502,143.19,143.16,0.04696108]
[1724024633527,0.04568502,143.19,143.16,3.53886108]
[1724024634035,3.53708502,143.19,143.16,0.04696108]
[1724024634922,0.04568502,143.19,143.17,3.4918]
[1724024635834,0.04568502,143.19,143.16,3.53896108]
[1724024637335,0.04568502,143.19,143.17,3.4918]
[1724024637527,0.04568502,143.19,143.16,0.04696108]
[1724024638931,0.04568502,143.19,143.17,3.4918]
[1724024641331,0.04568502,143.19,143.16,3.53886108]
[1724024642329,3.53708502,143.19,143.16,3.53886108]
[1724024643028,0.04568502,143.19,143.16,3.53886108]
[1724024643229,0.04568502,143.19,143.17,3.4917]
[1724024644140,0.04568502,143.19,143.16,11.04886108]
[1724024645636,0.04568502,143.19,143.16,7.55696108]
[1724024646237,0.04568502,143.19,143.16,11.04886108]
[1724024646535,0.04568502,143.19,143.17,7.51]
[1724024646840,0.04568502,143.19,143.18,3.4916]
[1724024647932,7.55568502,143.19,143.17,3.4917]
[1724024648137,7.51,143.17,143.05,7.51]
[1724024648339,7.51,143.12,143.05,3.57629898]
[1724024648639,3.4935,143.1,143.05,3.4946]
[1724024649038,3.4935,143.11,143.06,3.4943]
[1724024649233,0.05088423,143.09,143.06,0.04872826]
[1724024649836,3.54488423,143.09,143.06,0.04872826]
[1724024650234,4.61088423,143.09,143.02,7.51]
[1724024650434,0.05088423,143.09,143.02,2.6858]
[1724024650637,4.61088423,143.09,143.04,7.51]
[1724024650941,3.4942,143.08,143.04,7.51]
[1724024651335,3.494,143.08,143.05,0.04938797]
[1724024651534,0.05088423,143.09,143.05,0.04938797]
[1724024652539,3.4942,143.08,143.05,0.04938797]
[1724024653441,7.56088423,143.09,143.05,0.04938797]
[1724024654048,3.4944,143.07,143.05,0.04938797]
[1724024654551,7.56088423,143.09,143.05,0.04938797]
[1724024655142,0.05088423,143.09,143.05,0.04938797]
[1724024655748,3.4944,143.07,143.05,0.04938797]
[1724024655944,0.05088423,143.09,143.05,0.04938797]
[1724024656847,4.65088423,143.09,143.05,0.04938797]
[1724024657243,3.4942,143.08,143.05,0.04938797]
[1724024659444,4.65088423,143.09,143.05,0.04938797]
[1724024660535,0.05088423,143.09,143.05,7.55938797]
[1724024661154,3.54468423,143.09,143.05,11.05398797]
[1724024661541,3.4942,143.08,143.05,7.55938797]
[1724024661736,0.05088423,143.09,143.05,7.55938797]
[1724024661943,0.05088423,143.09,143.05,0.04938797]
[1724024662137,0.05088423,143.09,143.05,7.55938797]
[1724024662538,0.05088423,143.09,143.05,0.04938797]
[1724024662944,3.494,143.08,143.05,0.04938797]
[1724024663547,3.4943,143.07,143.05,0.04938797]
[1724024663743,0.05088423,143.09,143.05,0.04938797]
[1724024663950,3.4944,143.07,143.05,0.04938797]
[1724024666456,3.4945,143.06,143.05,0.04938797]
[1724024666944,3.4943,143.07,143.05,0.04938797]
[1724024667753,7.56088423,143.09,143.05,0.04938797]
[1724024668151,3.4945,143.07,143.05,0.04938797]
[1724024668354,7.56088423,143.09,143.05,0.04938797]
[1724024668753,3.4945,143.06,143.05,0.04938797]
[1724024670060,3.4943,143.07,143.05,0.04938797]
[1724024670255,0.05088423,143.09,143.05,0.04938797]
[1724024670559,4.65088423,143.09,143.05,0.04938797]
[1724024671060,3.4942,143.08,143.05,0.04938797]
[1724024671858,3.4942,143.08,143.05,3.54408797]
[1724024672454,3.54478423,143.09,143.05,3.54408797]
[1724024673566,3.54478423,143.09,143.06,3.4945]
[1724024674064,3.54478423,143.09,143.05,0.04938797]
[1724024674259,3.494,143.08,143.05,3.54398797]
[1724024674764,3.54478423,143.09,143.05,3.54398797]
[1724024675168,0.05088423,143.09,143.05,0.04938797]
[1724024675465,3.54478423,143.09,143.05,0.04938797]
[1724024675760,3.54478423,143.09,143.05,3.54398797]
[1724024677065,3.4941,143.08,143.05,0.04938797]
[1724024677366,0.05088423,143.09,143.05,0.04938797]
[1724024677564,3.4941,143.08,143.05,0.04938797]
[1724024678568,0.05088423,143.09,143.05,7.55938797]
[1724024678768,0.05088423,143.09,143.05,0.04938797]
[1724024678970,3.54478423,143.09,143.05,3.54398797]
[1724024679464,3.54478423,143.09,143.05,0.04938797]
[1724024679669,0.05088423,143.09,143.06,3.4943]
[1724024680459,3.4943,143.07,143.05,0.04938797]
[1724024680660,0.05088423,143.09,143.05,0.04938797]
[1724024681062,3.54478423,143.09,143.05,3.54388797]
[1724024681264,37.55,143.06,142.95,7.51]
[1724024681565,3.4955,143.02,142.98,3.4962]